lending/lending_fUSD_20240824
["ID","MTS","AMOUNT","RATE_DAILY","PERIOD"]
[335741434,1724472632956,-150.0,0.00010776,2]
[335741435,1724472632965,-150.0,0.00010779,2]
[335741436,1724472632975,-150.0,0.00010779,2]
[335741437,1724472632984,-150.0,0.0001078,2]
[335741438,1724472632994,-150.0,0.00010795,2]
[335741439,1724472633003,-150.0,0.00010795,2]
[335741440,1724472633012,-150.0,0.00010797,2]
[335741441,1724472633021,-150.0,0.00010798,2]
[335741442,1724472633031,-150.0,0.00010799,2]
[335741443,1724472633040,-155.94399844,0.000108,2]
[335741444,1724472633050,-6599.8936857,0.000108,2]
[335741445,1724472633060,-790.9,0.000108,2]
[335741446,1724472633070,-150.0,0.000108,2]
[335741447,1724472633080,-531.57,0.000108,2]
[335741448,1724472633090,-790.9,0.000108,2]
[335741449,1724472633103,-139.72726697,0.000108,2]
[335741450,1724472633302,-10.27273303,0.000108,2]
[335741451,1724472633311,-150.0,0.000108,2]
[335741452,1724472633322,-150.0,0.000108,2]
[335741453,1724472633331,-531.57,0.000108,2]
[335741454,1724472633340,-150.0,0.000108,2]
[335741455,1724472633349,-150.0,0.00010801,2]
[335741456,1724472633358,-150.0,0.00010802,2]
[335741457,1724472633367,-150.0,0.00010802,2]
[335741458,1724472633376,-150.0,0.00010804,2]
[335741459,1724472633385,-150.0,0.00010809,2]
[335741460,1724472633394,-150.0,0.00010809,2]
[335741461,1724472633404,-150.0,0.00010812,2]
[335741462,1724472633413,-150.0,0.00010812,2]
[335741463,1724472633422,-150.0,0.00010814,2]
[335741464,1724472633432,-150.0,0.00010824,2]
[335741465,1724472633441,-150.0,0.00010828,2]
[335741466,1724472633451,-150.0,0.00010831,2]
[335741467,1724472633460,-150.0,0.00010831,2]
[335741468,1724472633471,-150.0,0.00010835,2]
[335741469,1724472633481,-150.0,0.00010835,2]
[335741470,1724472633491,-150.0,0.00010836,2]
[335741471,1724472633500,-150.0,0.00010839,2]
[335741472,1724472633510,-150.0,0.0001084,2]
[335741473,1724472633520,-150.0,0.00010841,2]
[335741474,1724472633530,-114.12439025,0.00010843,2]
[335741475,1724472633542,-35.87560975,0.00010843,2]
[335741476,1724472633551,-150.0,0.00010857,2]
[335741477,1724472633560,-150.0,0.00010858,2]
[335741478,1724472633570,-718.3116,0.00010858,2]
[335741479,1724472633579,-176.60086417,0.00010858,2]
[335741480,1724472633591,-129.94913583,0.00010858,2]
[335741481,1724472633600,-946.00581607,0.00010859,2]
[335741482,1724472633612,-200.55858393,0.00010859,2]
[335741483,1724472633622,-150.0,0.0001086,2]
[335741484,1724472633632,-150.0,0.00010861,2]
[335741485,1724472633642,-121.44141607,0.00010864,2]
[335741486,1724472633659,-28.55858393,0.00010864,2]
[335741487,1724472633670,-150.0,0.00010867,2]
[335741488,1724472633680,-150.0,0.0001087,2]
[335741489,1724472633690,-23.40141607,0.00010871,2]
[335741492,1724472638324,-155.0,0.00010026,2]
[335741493,1724472638334,-1500.0,0.00010026,2]
[335741494,1724472638342,-435.07539557,0.00010471,2]
[335741495,1724472638351,-109.95811369,0.00010871,2]
[335741496,1724472638363,-16.64047024,0.00010871,2]
[335741497,1724472638372,-499.99,0.00010872,2]
[335741498,1724472638381,-2439.45471249,0.00010878,2]
[335741499,1724472638392,-561.82928208,0.00010878,2]
[335741500,1724472638402,-1423.16410445,0.00010878,2]
[335741501,1724472638411,-150.0,0.0001088,2]
[335741502,1724472638421,-150.0,0.00010882,2]
[335741503,1724472638430,-150.0,0.00010885,2]
[335741504,1724472638439,-150.0,0.00010887,2]
[335741505,1724472638448,-12501.421,0.00010888,2]
[335741506,1724472638457,-247.9946,0.00010888,2]
[335741507,1724472638465,-291.5544,0.00010888,2]
[335741508,1724472638475,-150.0,0.00010888,2]
[335741509,1724472638484,-150.0,0.00010891,2]
[335741510,1724472638493,-1000.0,0.00010894,2]
[335741511,1724472638503,-4746.2377,0.00010895,2]
[335741512,1724472638512,-7500.0,0.00010895,2]
[335741513,1724472638521,-6067.31419555,0.00010896,2]
[335741514,1724472638532,-698.46349581,0.00010896,2]
[335741515,1724472638543,-1553.4252,0.00010896,2]
[335741516,1724472638554,-1697.09681295,0.00010896,2]
[335741517,1724472638564,-582.24356216,0.00010896,2]
[335741518,1724472638580,-423.10202108,0.00010896,2]
[335741519,1724472638591,-3037.99417391,0.00010896,2]
[335741520,1724472638603,-2043.36053854,0.00010896,2]
[335741521,1724472638612,-5872.971,0.00010899,2]
[335741522,1724472638621,-21828.61,0.00010899,2]
[335741523,1724472638630,-290.375,0.00010899,2]
[335741524,1724472638639,-3737.262,0.00010899,2]
[335741525,1724472638648,-1210.713,0.00010899,2]
[335741526,1724472638657,-1678.116,0.00010899,2]
[335741527,1724472638667,-150.0,0.00010899,2]
[335741528,1724472638676,-150.0,0.00010899,2]
[335741529,1724472638685,-478.71229854,0.00010899,2]
[335741530,1724472638694,-478.71229854,0.00010899,2]
[335741531,1724472638703,-478.71229854,0.00010899,2]
[335741532,1724472638712,-478.71229854,0.00010899,2]
[335741533,1724472638721,-478.71229854,0.00010899,2]
[335741534,1724472638730,-478.71229854,0.000109,2]
[335741535,1724472638739,-150.0,0.000109,2]
[335741536,1724472638748,-957.53,0.000109,2]
[335741537,1724472638757,-150.0,0.000109,2]
[335741538,1724472638766,-790.9,0.000109,2]
[335741539,1724472638775,-712.54,0.000109,2]
[335741540,1724472638785,-150.0,0.000109,2]
[335741541,1724472638794,-1204.23,0.000109,2]
[335741542,1724472638802,-170.69151517,0.000109,2]
[335741543,1724472638811,-170.69151515,0.000109,2]
[335741544,1724472638820,-170.69151515,0.000109,2]
[335741545,1724472638829,-170.69151515,0.000109,2]
[335741546,1724472638838,-170.69151515,0.000109,2]
[335741547,1724472638846,-170.69151515,0.000109,2]
[335741548,1724472638856,-531.57,0.000109,2]
[335741549,1724472638865,-150.0,0.000109,2]
[335741550,1724472638874,-150.0,0.000109,2]
[335741551,1724472638883,-150.0,0.00010901,2]
[335741552,1724472639067,-150.0,0.00010902,2]
[335741553,1724472639078,-150.0,0.00010904,2]
[335741554,1724472639087,-150.0,0.00010906,2]
[335741555,1724472639101,-150.0,0.00010907,2]
[335741556,1724472639111,-150.0,0.00010908,2]
[335741557,1724472639120,-2843.18598916,0.00010909,2]
[335741558,1724472639129,-150.0,0.00010909,2]
[335741559,1724472639139,-150.0,0.00010913,2]
[335741560,1724472639148,-150.0,0.00010913,2]
[335741561,1724472639157,-150.0,0.00010916,2]
[335741562,1724472639166,-150.0,0.0001092,2]
[335741563,1724472639177,-150.0,0.00010923,2]
[335741565,1724472639186,-150.0,0.00010927,2]
[335741567,1724472639196,-150.0,0.00010929,2]
[335741569,1724472639205,-150.0,0.0001093,2]
[335741571,1724472639215,-150.0,0.00010932,2]
[335741573,1724472639224,-150.0,0.00010934,2]
[335741575,1724472639233,-150.0,0.00010935,2]
[335741577,1724472639242,-150.0,0.00010935,2]
[335741579,1724472639251,-150.0,0.0001094,2]
[335741581,1724472639261,-150.0,0.00010943,2]
[335741583,1724472639271,-150.0,0.00010947,2]
[335741585,1724472639280,-150.0,0.00010955,2]
[335741587,1724472639289,-155.42995,0.00010958,2]
[335741589,1724472639298,-152.775287,0.00010958,2]
[335741591,1724472639307,-162.78,0.00010959,2]
[335741593,1724472639317,-4403.14,0.00010959,2]
[335741595,1724472639326,-2000.0,0.00010959,2]
[335741597,1724472639335,-587.49,0.00010959,2]
[335741599,1724472639344,-1027.07,0.00010959,2]
[335741601,1724472639353,-250.0,0.00010959,2]
[335741603,1724472639362,-855.89,0.00010959,2]
[335741605,1724472639371,-713.24,0.00010959,2]
[335741607,1724472639380,-594.37,0.00010959,2]
[335741609,1724472639389,-495.31,0.00010959,2]
[335741611,1724472639398,-150.0,0.00010959,2]
[335741613,1724472639407,-412.76,0.00010959,2]
[335741615,1724472639416,-343.96,0.00010959,2]
[335741617,1724472639425,-286.64,0.00010959,2]
[335741619,1724472639434,-238.86,0.00010959,2]
[335741621,1724472639444,-500.0,0.0001096,2]
[335741623,1724472639453,-189.758,0.00010963,2]
[335741624,1724472639463,-150.0,0.00010966,2]
[335741626,1724472639472,-15945.82652366,0.00010969,2]
[335741628,1724472639482,-15945.82652366,0.00010971,2]
[335741630,1724472639491,-188.937186,0.00010973,2]
[335741632,1724472639501,-400.0,0.00010973,2]
[335741634,1724472639511,-150.0,0.0001098,2]
[335741636,1724472639520,-150.0,0.00010981,2]
[335741639,1724472639530,-150.0,0.00010985,2]
[335741640,1724472639541,-150.0,0.00010989,2]
[335741642,1724472639550,-150.0,0.00010989,2]
[335741644,1724472639560,-155.88320294,0.00010989,2]
[335741646,1724472639569,-15945.82652366,0.00010991,2]
[335741648,1724472639590,-2410.87,0.00010993,2]
[335741650,1724472639599,-500.0,0.00010993,2]
[335741652,1724472639608,-500.0,0.00010993,2]
[335741654,1724472639618,-500.0,0.00010993,2]
[335741656,1724472639627,-500.0,0.00010993,2]
[335741658,1724472639635,-500.0,0.00010993,2]
[335741660,1724472639644,-500.0,0.00010993,2]
[335741662,1724472639653,-500.0,0.00010993,2]
[335741664,1724472639662,-682.68,0.00010993,2]
[335741665,1724472639670,-631.43,0.00010993,2]
[335741667,1724472639679,-2975.29,0.00010993,2]
[335741669,1724472639688,-500.0,0.00010993,2]
[335741671,1724472639697,-671.49,0.00010993,2]
[335741673,1724472639706,-742.72,0.00010993,2]
[335741675,1724472639714,-22352.13,0.00010993,2]
[335741677,1724472639724,-376.72189051,0.00010993,2]
[335741679,1724472639733,-150.0,0.00010994,2]
[335741681,1724472639742,-7211.38,0.00010994,2]
[335741683,1724472639752,-4055.71,0.00010994,2]
[335741685,1724472639761,-500.0,0.00010994,2]
[335741687,1724472639770,-9939.44,0.00010994,2]
[335741689,1724472639779,-11173.19,0.00010994,2]
[335741691,1724472639789,-341.18346158,0.00010994,2]
[335741693,1724472639798,-8573.41,0.00010994,2]
[335741694,1724472639807,-500.0,0.00010994,2]
[335741696,1724472639816,-13122.67,0.00010994,2]
[335741698,1724472639826,-6019.84,0.00010994,2]
[335741700,1724472639835,-7667.73,0.00010994,2]
[335741702,1724472639845,-1685.63,0.00010994,2]
[335741704,1724472639854,-631.43,0.00010994,2]
[335741706,1724472639863,-5395.96,0.00010994,2]
[335741708,1724472639872,-2975.29,0.00010994,2]
[335741710,1724472639881,-2875.25,0.00010994,2]
[335741712,1724472639891,-3609.74,0.00010994,2]
[335741714,1724472639900,-500.0,0.00010994,2]
[335741716,1724472639909,-10726.27,0.00010994,2]
[335741718,1724472639919,-671.49,0.00010994,2]
[335741720,1724472639928,-3118.38,0.00010994,2]
[335741722,1724472639937,-2664.41,0.00010994,2]
[335741724,1724472639946,-500.0,0.00010994,2]
[335741726,1724472639955,-742.72,0.00010994,2]
[335741728,1724472639964,-22352.13,0.00010994,2]
[335741730,1724472639973,-5204.4646742,0.00010995,2]
[335741732,1724472639982,-41249.2853338,0.00010995,2]
[335741734,1724472639991,-2410.87,0.00010995,2]
[335741736,1724472640000,-2410.87,0.00010995,2]
[335741738,1724472640009,-2410.87,0.00010995,2]
[335741740,1724472640017,-2229.5030262,0.00010995,2]
[335741741,1724472640027,-7211.38,0.00010995,2]
[335741743,1724472640036,-500.0,0.00010995,2]
[335741745,1724472640045,-500.0,0.00010995,2]
[335741747,1724472640055,-500.0,0.00010995,2]
[335741749,1724472640064,-4055.71,0.00010995,2]
[335741751,1724472640076,-500.0,0.00010995,2]
[335741753,1724472640085,-500.0,0.00010995,2]
[335741755,1724472640097,-500.0,0.00010995,2]
[335741757,1724472640107,-500.0,0.00010995,2]
[335741759,1724472640116,-379.7770727,0.00010995,2]
[335741761,1724472640125,-500.0,0.00010995,2]
[335741763,1724472640134,-500.0,0.00010995,2]
[335741765,1724472640143,-500.0,0.00010995,2]
[335741767,1724472640153,-500.0,0.00010995,2]
[335741769,1724472640162,-500.0,0.00010995,2]
[335741771,1724472640171,-500.0,0.00010995,2]
[335741773,1724472640181,-9939.44,0.00010995,2]
[335741775,1724472640190,-9939.44,0.00010995,2]
[335741777,1724472640199,-11173.19,0.00010995,2]
[335741779,1724472640208,-11173.19,0.00010995,2]
[335741780,1724472640217,-8573.41,0.00010995,2]
[335741782,1724472640226,-8573.41,0.00010995,2]
[335741784,1724472640235,-433.09522425,0.00010995,2]
[335741786,1724472640244,-500.0,0.00010995,2]
[335741788,1724472640254,-500.0,0.00010995,2]
[335741790,1724472640262,-500.0,0.00010995,2]
[335741792,1724472640271,-500.0,0.00010995,2]
[335741794,1724472640281,-13122.67,0.00010995,2]
[335741796,1724472640290,-682.68,0.00010995,2]
[335741798,1724472640299,-682.68,0.00010995,2]
[335741800,1724472640308,-682.68,0.00010995,2]
[335741802,1724472640317,-6019.84,0.00010995,2]
[335741804,1724472640336,-7667.73,0.00010995,2]
[335741806,1724472640345,-1685.63,0.00010995,2]
[335741807,1724472640354,-631.43,0.00010995,2]
[335741809,1724472640364,-5395.96,0.00010995,2]
[335741811,1724472640373,-2975.29,0.00010995,2]
[335741813,1724472640382,-2875.25,0.00010995,2]
[335741815,1724472640391,-3609.74,0.00010995,2]
[335741817,1724472640401,-500.0,0.00010995,2]
[335741819,1724472640411,-10726.27,0.00010995,2]
[335741822,1724472640420,-671.49,0.00010995,2]
[335741824,1724472640430,-3118.38,0.00010995,2]
[335741826,1724472640439,-2664.41,0.00010995,2]
[335741828,1724472640448,-500.0,0.00010995,2]
[335741830,1724472640457,-742.72,0.00010995,2]
[335741832,1724472640467,-22352.13,0.00010995,2]
[335741834,1724472640475,-155.42995,0.00010996,2]
[335741836,1724472640485,-150.0,0.00010996,2]
[335741838,1724472640495,-150.0,0.00010996,2]
[335741840,1724472640504,-2410.87,0.00010996,2]
[335741842,1724472640513,-2410.87,0.00010996,2]
[335741844,1724472640523,-2410.87,0.00010996,2]
[335741846,1724472640532,-7211.38,0.00010996,2]
[335741848,1724472640541,-7211.38,0.00010996,2]
[335741850,1724472640551,-7211.38,0.00010996,2]
[335741852,1724472640560,-500.0,0.00010996,2]
[335741854,1724472640572,-500.0,0.00010996,2]
[335741856,1724472640582,-500.0,0.00010996,2]
[335741858,1724472640592,-4055.71,0.00010996,2]
[335741860,1724472640601,-4055.71,0.00010996,2]
[335741862,1724472640610,-4055.71,0.00010996,2]
[335741864,1724472640619,-500.0,0.00010996,2]
[335741866,1724472640628,-500.0,0.00010996,2]
[335741868,1724472640637,-500.0,0.00010996,2]
[335741870,1724472640646,-500.0,0.00010996,2]
[335741871,1724472640655,-500.0,0.00010996,2]
[335741873,1724472640665,-500.0,0.00010996,2]
[335741875,1724472640674,-500.0,0.00010996,2]
[335741877,1724472640683,-9939.44,0.00010996,2]
[335741879,1724472640693,-11173.19,0.00010996,2]
[335741881,1724472640703,-8573.41,0.00010996,2]
[335741883,1724472640712,-500.0,0.00010996,2]
[335741885,1724472640721,-500.0,0.00010996,2]
[335741887,1724472640730,-500.0,0.00010996,2]
[335741889,1724472640739,-451.12641513,0.00010996,2]
[335741891,1724472640749,-13122.67,0.00010996,2]
[335741893,1724472640758,-13122.67,0.00010996,2]
[335741895,1724472640767,-13122.67,0.00010996,2]
[335741897,1724472640776,-682.68,0.00010996,2]
[335741899,1724472640786,-682.68,0.00010996,2]
[335741901,1724472640795,-682.68,0.00010996,2]
[335741903,1724472640805,-7667.73,0.00010996,2]
[335741905,1724472640814,-6019.84,0.00010996,2]
[335741906,1724472640823,-7667.73,0.00010996,2]
[335741908,1724472640832,-6019.84,0.00010996,2]
[335741910,1724472640841,-6019.84,0.00010996,2]
[335741912,1724472640851,-1685.63,0.00010996,2]
[335741914,1724472640860,-1685.63,0.00010996,2]
[335741916,1724472640868,-1685.63,0.00010996,2]
[335741918,1724472640878,-631.43,0.00010996,2]
[335741920,1724472640887,-631.43,0.00010996,2]
[335741922,1724472640896,-5395.96,0.00010996,2]
[335741924,1724472640904,-5395.96,0.00010996,2]
[335741926,1724472640914,-5395.96,0.00010996,2]
[335741927,1724472640922,-2975.29,0.00010996,2]
[335741929,1724472640931,-2975.29,0.00010996,2]
[335741931,1724472640941,-2875.25,0.00010996,2]
[335741933,1724472640950,-2875.25,0.00010996,2]
[335741935,1724472640959,-2875.25,0.00010996,2]
[335741937,1724472640969,-500.0,0.00010996,2]
[335741939,1724472640978,-10726.27,0.00010996,2]
[335741941,1724472640987,-10726.27,0.00010996,2]
[335741943,1724472640996,-10726.27,0.00010996,2]
[335741945,1724472641005,-671.49,0.00010996,2]
[335741947,1724472641014,-3118.38,0.00010996,2]
[335741949,1724472641024,-3118.38,0.00010996,2]
[335741951,1724472641035,-3118.38,0.00010996,2]
[335741953,1724472641045,-2664.41,0.00010996,2]
[335741954,1724472641054,-2664.41,0.00010996,2]
[335741956,1724472641063,-2664.41,0.00010996,2]
[335741958,1724472641073,-500.0,0.00010996,2]
[335741960,1724472641082,-500.0,0.00010996,2]
[335741962,1724472641090,-500.0,0.00010996,2]
[335741963,1724472641102,-742.72,0.00010996,2]
[335741964,1724472641111,-22352.13,0.00010996,2]
[335741965,1724472641120,-753.44378102,0.00010996,2]
[335741966,1724472641129,-706.0,0.00010997,2]
[335741967,1724472641138,-152.049705,0.00010997,2]
[335741968,1724472641147,-151.0,0.00010997,2]
[335741969,1724472641157,-155.42995,0.00010997,2]
[335741970,1724472641166,-2410.87,0.00010997,2]
[335741971,1724472641176,-2410.87,0.00010997,2]
[335741972,1724472641186,-2410.87,0.00010997,2]
[335741973,1724472641198,-7211.38,0.00010997,2]
[335741974,1724472641208,-7211.38,0.00010997,2]
[335741975,1724472641217,-500.0,0.00010997,2]
[335741976,1724472641227,-500.0,0.00010997,2]
[335741977,1724472641236,-500.0,0.00010997,2]
[335741978,1724472641245,-4055.71,0.00010997,2]
[335741979,1724472641255,-4055.71,0.00010997,2]
[335741980,1724472641264,-500.0,0.00010997,2]
[335741981,1724472641274,-500.0,0.00010997,2]
[335741982,1724472641284,-500.0,0.00010997,2]
[335741983,1724472641293,-500.0,0.00010997,2]
[335741984,1724472641302,-500.0,0.00010997,2]
[335741986,1724472641312,-500.0,0.00010997,2]
[335741988,1724472641322,-500.0,0.00010997,2]
[335741989,1724472641331,-500.0,0.00010997,2]
[335741990,1724472641341,-9939.44,0.00010997,2]
[335741991,1724472641350,-9939.44,0.00010997,2]
[335741992,1724472641360,-11173.19,0.00010997,2]
[335741993,1724472641370,-11173.19,0.00010997,2]
[335741994,1724472641379,-8573.41,0.00010997,2]
[335741995,1724472641389,-8573.41,0.00010997,2]
[335741996,1724472641398,-304.9375243,0.00010997,2]
[335741997,1724472641408,-13122.67,0.00010997,2]
[335741998,1724472641417,-13122.67,0.00010997,2]
[335741999,1724472641427,-682.68,0.00010997,2]
[335742000,1724472641436,-682.68,0.00010997,2]
[335742001,1724472641445,-682.68,0.00010997,2]
[335742002,1724472641454,-7667.73,0.00010997,2]
[335742003,1724472641463,-6019.84,0.00010997,2]
[335742004,1724472641472,-6019.84,0.00010997,2]
[335742005,1724472641481,-1685.63,0.00010997,2]
[335742006,1724472641490,-1685.63,0.00010997,2]
[335742007,1724472641499,-631.43,0.00010997,2]
[335742008,1724472641508,-631.43,0.00010997,2]
[335742010,1724472641517,-5395.96,0.00010997,2]
[335742012,1724472641527,-5395.96,0.00010997,2]
[335742014,1724472641536,-2975.29,0.00010997,2]
[335742016,1724472641545,-2975.29,0.00010997,2]
[335742018,1724472641554,-2875.25,0.00010997,2]
[335742020,1724472641564,-2875.25,0.00010997,2]
[335742022,1724472641574,-500.0,0.00010997,2]
[335742024,1724472641584,-500.0,0.00010997,2]
[335742026,1724472641593,-500.0,0.00010997,2]
[335742028,1724472641603,-10726.27,0.00010997,2]
[335742030,1724472641612,-10726.27,0.00010997,2]
[335742032,1724472641622,-671.49,0.00010997,2]
[335742034,1724472641631,-671.49,0.00010997,2]
[335742036,1724472641640,-671.49,0.00010997,2]
[335742038,1724472641651,-3118.38,0.00010997,2]
[335742040,1724472641660,-3118.38,0.00010997,2]
[335742042,1724472641670,-2664.41,0.00010997,2]
[335742044,1724472641680,-2664.41,0.00010997,2]
[335742046,1724472641690,-500.0,0.00010997,2]
[335742048,1724472641699,-500.0,0.00010997,2]
[335742050,1724472641709,-742.72,0.00010997,2]
[335742052,1724472641718,-742.72,0.00010997,2]
[335742054,1724472641727,-742.72,0.00010997,2]
[335742056,1724472641736,-22352.13,0.00010997,2]
[335742058,1724472641746,-22352.13,0.00010997,2]
[335742060,1724472641755,-22352.13,0.00010997,2]
[335742062,1724472641764,-2260.33134306,0.00010997,2]
[335742064,1724472641773,-151.0,0.00010998,2]
[335742066,1724472641783,-211.509837,0.00010998,2]
[335742068,1724472641792,-2000.0,0.00010998,2]
[335742070,1724472641801,-200.0,0.00010998,2]
[335742072,1724472641811,-155.42995,0.00010998,2]
[335742074,1724472641820,-155.42995,0.00010998,2]
[335742076,1724472641829,-155.42995,0.00010998,2]
[335742078,1724472641839,-155.42995,0.00010998,2]
[335742080,1724472641849,-155.42995,0.00010998,2]
[335742082,1724472641858,-155.42995,0.00010998,2]
[335742084,1724472641868,-152.775287,0.00010998,2]
[335742086,1724472641877,-152.775287,0.00010998,2]
[335742088,1724472641887,-1821.66091685,0.00010998,2]
[335742090,1724472641896,-200.0,0.00010998,2]
[335742092,1724472641905,-2410.87,0.00010998,2]
[335742094,1724472641914,-2410.87,0.00010998,2]
[335742095,1724472641923,-2410.87,0.00010998,2]
[335742097,1724472641933,-7211.38,0.00010998,2]
[335742099,1724472641942,-7211.38,0.00010998,2]
[335742101,1724472641951,-7211.38,0.00010998,2]
[335742103,1724472641961,-7211.38,0.00010998,2]
[335742105,1724472641970,-7211.38,0.00010998,2]
[335742107,1724472641980,-500.0,0.00010998,2]
[335742109,1724472641989,-500.0,0.00010998,2]
[335742111,1724472641998,-500.0,0.00010998,2]
[335742113,1724472642007,-3000.0,0.00010998,2]
[335742115,1724472642016,-4055.71,0.00010998,2]
[335742117,1724472642025,-4055.71,0.00010998,2]
[335742119,1724472642036,-4055.71,0.00010998,2]
[335742121,1724472642046,-4055.71,0.00010998,2]
[335742123,1724472642055,-4055.71,0.00010998,2]
[335742125,1724472642064,-350.01795703,0.00010998,2]
[335742127,1724472642075,-500.0,0.00010998,2]
[335742129,1724472642084,-643.48389163,0.00010998,2]
[335742131,1724472642095,-500.0,0.00010998,2]
[335742133,1724472642105,-415.18160009,0.00010998,2]
[335742135,1724472642115,-9939.44,0.00010998,2]
[335742137,1724472642124,-9939.44,0.00010998,2]
[335742139,1724472642133,-9939.44,0.00010998,2]
[335742141,1724472642142,-9939.44,0.00010998,2]
[335742143,1724472642151,-9939.44,0.00010998,2]
[335742144,1724472642160,-9939.44,0.00010998,2]
[335742146,1724472642169,-9939.44,0.00010998,2]
[335742148,1724472642179,-11173.19,0.00010998,2]
[335742150,1724472642188,-11173.19,0.00010998,2]
[335742152,1724472642198,-11173.19,0.00010998,2]
[335742154,1724472642207,-11173.19,0.00010998,2]
[335742156,1724472642217,-11173.19,0.00010998,2]
[335742158,1724472642227,-11173.19,0.00010998,2]
[335742160,1724472642236,-11173.19,0.00010998,2]
[335742162,1724472642246,-8573.41,0.00010998,2]
[335742164,1724472642255,-8573.41,0.00010998,2]
[335742166,1724472642265,-8573.41,0.00010998,2]
[335742168,1724472642274,-8573.41,0.00010998,2]
[335742170,1724472642283,-8573.41,0.00010998,2]
[335742172,1724472642293,-8573.41,0.00010998,2]
[335742174,1724472642302,-8573.41,0.00010998,2]
[335742176,1724472642311,-13122.67,0.00010998,2]
[335742178,1724472642321,-13122.67,0.00010998,2]
[335742180,1724472642331,-13122.67,0.00010998,2]
[335742182,1724472642340,-13122.67,0.00010998,2]
[335742184,1724472642350,-13122.67,0.00010998,2]
[335742186,1724472642359,-682.68,0.00010998,2]
[335742188,1724472642369,-682.68,0.00010998,2]
[335742190,1724472642378,-682.68,0.00010998,2]
[335742192,1724472642388,-7667.73,0.00010998,2]
[335742194,1724472642397,-6019.84,0.00010998,2]
[335742196,1724472642406,-7667.73,0.00010998,2]
[335742198,1724472642416,-6019.84,0.00010998,2]
[335742200,1724472642425,-7667.73,0.00010998,2]
[335742202,1724472642434,-6019.84,0.00010998,2]
[335742204,1724472642444,-7667.73,0.00010998,2]
[335742206,1724472642453,-6019.84,0.00010998,2]
[335742208,1724472642462,-7667.73,0.00010998,2]
[335742210,1724472642472,-6019.84,0.00010998,2]
[335742212,1724472642481,-7667.73,0.00010998,2]
[335742214,1724472642491,-7667.73,0.00010998,2]
[335742216,1724472642500,-7667.73,0.00010998,2]
[335742218,1724472642509,-1685.63,0.00010998,2]
[335742220,1724472642519,-1685.63,0.00010998,2]
[335742222,1724472642528,-1685.63,0.00010998,2]
[335742223,1724472642537,-1685.63,0.00010998,2]
[335742225,1724472642548,-1685.63,0.00010998,2]
[335742227,1724472642557,-631.43,0.00010998,2]
[335742229,1724472642567,-631.43,0.00010998,2]
[335742232,1724472642577,-631.43,0.00010998,2]
[335742234,1724472642587,-631.43,0.00010998,2]
[335742235,1724472642596,-631.43,0.00010998,2]
[335742238,1724472642606,-631.43,0.00010998,2]
[335742240,1724472642615,-5395.96,0.00010998,2]
[335742242,1724472642625,-5395.96,0.00010998,2]
[335742244,1724472642635,-5395.96,0.00010998,2]
[335742245,1724472642645,-5395.96,0.00010998,2]
[335742247,1724472642654,-5395.96,0.00010998,2]
[335742249,1724472642663,-2975.29,0.00010998,2]
[335742251,1724472642673,-2975.29,0.00010998,2]
[335742253,1724472642683,-2975.29,0.00010998,2]